bitfinex-derivatives/quotes_ETHF0:USTF0_20250614
["timestamp","ask_amount","ask_price","bid_price","bid_amount"]
[1749863412276,0.78184,2556.8,2556.7,0.6221]
[1749863412477,0.78187,2556.7,2556.6,3.21366613]
[1749863412686,0.78187,2556.7,2556.6,0.00586613]
[1749863412879,0.78187,2556.7,2556.6,0.78777613]
[1749863413483,0.78187,2556.7,2556.6,2.10607613]
[1749863413981,10.3813,2557.0,2556.6,1.32416613]
[1749863414278,1.77178913,2556.9,2556.8,0.78183]
[1749863414487,0.78184,2556.8,2556.7,2.10015]
[1749863414672,1.77179913,2556.8,2556.7,2.10015]
[1749863415483,0.98995913,2556.8,2556.7,2.10015]
[1749863415679,0.78179,2557.0,2556.9,0.7818]
[1749863415871,0.78179,2557.0,2556.8,0.6496]
[1749863415872,0.99032305,2557.0,2556.8,0.6496]
[1749863416072,0.99032305,2557.0,2556.9,2.10011]
[1749863416372,1.77210305,2557.0,2556.9,1.9494]
[1749863416776,1.77210305,2557.0,2556.9,2.73121]
[1749863417784,0.99032305,2557.0,2556.9,2.73121]
[1749863418286,1.77210305,2557.0,2556.9,2.73121]
[1749863420085,0.99032305,2557.0,2556.9,2.73121]
[1749863420980,3.2078,2557.3,2557.2,0.78172]
[1749863421191,0.99138597,2557.3,2557.2,0.78172]
[1749863421782,1.77307597,2557.3,2557.2,0.78172]
[1749863422986,0.99138597,2557.3,2557.2,0.78172]
[1749863424285,0.78162,2557.6,2557.5,0.78162]
[1749863424584,0.78162,2557.6,2557.4,0.78164]
[1749863424585,0.78164,2557.5,2557.4,0.78164]
[1749863424892,1.7723702,2557.5,2557.4,2.83024]
[1749863425193,0.78164,2557.5,2557.4,2.83024]
[1749863425388,0.78164,2557.5,2557.4,2.0486]
[1749863425589,0.78164,2557.5,2557.4,2.83026]
[1749863425590,1.77166407,2557.5,2557.4,2.83026]
[1749863425793,1.77166407,2557.5,2557.4,2.0486]
[1749863426396,1.77166407,2557.5,2557.4,2.83026]
[1749863426791,0.78162,2557.6,2557.5,0.78163]
[1749863426992,0.98952203,2557.6,2557.5,2.04773]
[1749863427492,3.98938,2557.7,2557.6,0.7816]
[1749863427689,0.7816,2557.6,2557.5,2.0477]
[1749863427889,3.98939,2557.7,2557.6,0.7816]
[1749863428192,1.77084687,2557.7,2557.6,0.7816]
[1749863428693,0.7816,2557.6,2557.5,5.25551]
[1749863428994,0.7816,2557.7,2557.6,0.78159]
[1749863429194,1.77059874,2557.7,2557.6,0.78159]
[1749863429998,0.7816,2557.6,2557.5,5.25551]
[1749863430293,0.7816,2557.6,2557.5,11.76451]
[1749863430489,0.78159,2557.7,2557.6,0.78159]
[1749863430682,1.77089357,2557.7,2557.6,0.78159]
[1749863431392,0.78156,2557.8,2557.7,0.78156]
[1749863432496,0.78158,2557.7,2557.6,0.78158]
[1749863433188,0.78156,2557.8,2557.7,0.78156]
[1749863433588,0.78153,2557.9,2557.8,0.78153]
[1749863433789,0.00586613,2558.0,2557.9,0.78151]
[1749863434489,0.00586613,2558.0,2557.9,3.98931]
[1749863435689,0.00586613,2558.0,2557.9,3.2078]
[1749863435690,0.78734613,2558.0,2557.9,3.2078]
[1749863435995,0.78151,2557.9,2557.8,0.78153]
[1749863436199,0.78157,2557.7,2557.6,3.98939]
[1749863436393,0.7816,2557.6,2557.5,0.78161]
[1749863438098,0.78155,2557.8,2557.7,0.78155]
[1749863438991,0.78155,2557.8,2557.7,3.98935]
[1749863439198,0.78155,2557.8,2557.7,0.78155]
[1749863440191,0.78158,2557.7,2557.6,0.78158]
[1749863440401,0.78163,2557.5,2557.4,3.8953]
[1749863440790,0.78163,2557.5,2557.4,0.6875]
[1749863441196,2.61745,2557.8,2557.3,6.508]
[1749863441197,0.78166,2557.4,2557.3,6.508]
[1749863442402,0.78166,2557.4,2557.3,7.28969]
[1749863444602,0.78166,2557.4,2557.3,0.78169]
[1749863447502,3.28939,2557.7,2557.2,0.6213]
[1749863447702,0.78167,2557.4,2557.3,0.78167]
[1749863448296,0.78165,2557.5,2557.4,0.78165]
[1749863448500,1.7727197,2557.5,2557.4,0.78165]
[1749863450107,0.78169,2557.4,2557.3,0.78168]
[1749863451505,0.78165,2557.5,2557.4,0.78164]
[1749863451902,1.77332359,2557.5,2557.4,0.78164]
[1749863454305,0.78168,2557.4,2557.3,0.78167]
[1749863454609,1.77335359,2557.4,2557.3,0.78167]
[1749863455198,0.99167359,2557.4,2557.3,0.78167]
[1749863455406,0.78172,2557.2,2557.1,3.2078]
[1749863455712,1.77386501,2557.2,2557.1,3.2078]
[1749863456113,1.77386501,2557.2,2557.1,3.98955]
[1749863456315,1.77386501,2557.2,2557.1,3.2078]
[1749863457406,5.99214501,2557.2,2556.7,3.2078]
[1749863457611,0.78187,2556.7,2556.6,0.00586613]
[1749863457813,1.77401501,2556.7,2556.6,0.00586613]
[1749863458316,1.77217865,2556.7,2556.6,0.00586613]
[1749863461406,1.77094264,2556.7,2556.6,0.00586613]
[1749863461604,1.77094301,2556.7,2556.6,0.00586613]
[1749863464012,3.98959,2557.0,2556.6,0.00586613]
[1749863464214,3.98959,2557.0,2556.9,0.78181]
[1749863464419,3.2078,2557.3,2557.2,0.78172]
[1749863464619,4.19665343,2557.3,2557.2,0.78172]
[1749863465120,4.19665343,2557.3,2557.0,1.9973]
[1749863465121,0.78175,2557.1,2557.0,1.9973]
[1749863465423,0.78175,2557.1,2557.0,2.77908]
[1749863465814,0.78174,2557.2,2557.1,0.78175]
[1749863466020,0.78174,2557.2,2557.0,2.77905]
[1749863466410,0.78175,2557.1,2557.0,2.77905]
[1749863466619,0.78137,2558.4,2557.2,3.2078]
[1749863466919,3.2078,2559.0,2558.3,3.2078]
[1749863467121,1.61274671,2558.9,2558.3,3.2078]
[1749863467321,0.78134,2558.5,2558.3,3.2078]
[1749863468026,0.78131,2558.6,2558.3,3.2078]
[1749863468222,0.78131,2558.6,2558.3,3.98918]
[1749863468415,0.00586613,2558.7,2558.4,0.78135]
[1749863468724,0.00586613,2558.7,2558.6,3.2078]
[1749863468920,0.95133664,2558.7,2558.6,3.2078]
[1749863469120,0.00586613,2558.7,2558.6,3.2078]
[1749863469424,0.78712613,2558.7,2558.6,3.2078]
[1749863472627,0.78712613,2558.7,2558.2,0.6594]
[1749863472628,0.78137,2558.4,2558.3,3.2078]
[1749863473823,0.78142,2558.2,2558.1,0.00586613]
[1749863474420,0.78142,2558.2,2557.9,3.2078]
[1749863474421,0.78148,2558.0,2557.9,3.2078]
[1749863474621,8.22326161,2558.0,2557.9,3.2078]
[1749863475435,1.95381,2557.9,2557.7,0.00586613]
[1749863475729,1.72432161,2557.8,2557.7,0.00586613]
[1749863475915,2.97802161,2557.8,2557.7,0.00586613]
[1749863476117,7.97802161,2557.8,2557.7,0.00586613]
[1749863477227,0.78169,2557.3,2557.2,3.2078]
[1749863484424,0.78175,2557.1,2557.0,3.21366613]
[1749863485332,1.95458,2556.9,2556.5,3.2078]
[1749863485524,0.78191,2556.6,2556.5,3.2078]
[1749863485831,6.10417819,2556.6,2556.0,0.78208]
[1749863486132,0.78205,2556.2,2556.1,1.2738]
[1749863486334,0.78207,2556.1,2556.0,0.78209]
[1749863486530,3.98982,2556.3,2556.0,1.3542]
[1749863486731,0.78203,2556.2,2556.1,0.78203]
[1749863486940,3.98981,2556.3,2556.1,0.78204]
[1749863487232,3.98981,2556.3,2556.2,1.3542]
[1749863488537,0.78206,2556.1,2555.9,0.63136613]
[1749863488929,0.78206,2556.1,2555.9,1.41346613]
[1749863489232,3.2078,2556.3,2555.9,2.76766613]
[1749863489427,0.78209,2556.0,2555.9,2.76766613]
[1749863489623,0.78207,2556.1,2556.0,0.78209]
[1749863489827,0.78207,2556.1,2555.9,2.76767613]
[1749863490335,0.78209,2556.0,2555.9,2.76767613]
[1749863490529,0.78208,2556.1,2555.9,2.76767613]
[1749863490724,0.78209,2556.0,2555.9,1.98556613]
[1749863490931,0.78209,2556.0,2555.9,0.00586613]
[1749863492023,9.7048,2556.0,2555.1,3.2078]
[1749863492328,0.78233,2555.2,2555.1,5.7837]
[1749863493533,0.78233,2555.2,2555.1,6.56606]
[1749863494029,0.7824,2555.0,2554.9,0.00586613]
[1749863496032,5.0,2555.0,2553.8,0.42763392]
[1749863496224,5.0,2555.0,2553.4,3.2078]
[1749863496225,3.2078,2553.9,2553.4,3.2078]
[1749863496424,3.2078,2553.9,2553.5,2.12723]
[1749863496737,3.2078,2553.9,2553.5,1.3444]
[1749863496930,3.99055,2553.9,2553.5,2.12724]
[1749863497235,3.99056,2553.9,2553.5,1.3444]
[1749863497430,3.2078,2553.9,2553.5,1.3444]
[1749863497932,3.2078,2554.4,2554.2,0.78262]
[1749863498130,3.2078,2554.4,2553.7,3.2078]
[1749863498331,0.78262,2554.3,2554.0,0.78268]
[1749863498532,3.9904,2554.4,2554.1,1.3444]
[1749863498726,3.99038,2554.4,2554.1,2.12705]
[1749863498925,3.99041,2554.4,2554.1,1.3444]
[1749863499139,0.78261,2554.3,2554.2,1.3747]
[1749863499532,3.9904,2554.4,2554.2,1.3747]
[1749863499726,0.78261,2554.3,2554.2,1.3747]
[1749863501234,3.99039,2554.4,2554.2,1.3747]
[1749863501735,3.2078,2554.4,2554.2,6.3747]
[1749863502039,0.00586613,2554.5,2554.4,0.78258]
[1749863502333,0.78258,2554.4,2554.3,1.3401]
[1749863502729,0.78258,2554.4,2554.0,0.00586613]
[1749863502730,0.78267,2554.1,2554.0,0.00586613]
[1749863502934,3.99047,2554.1,2554.0,0.00586613]
[1749863503735,3.2078,2554.1,2554.0,0.00586613]
[1749863503928,3.2078,2554.1,2554.0,0.78856613]
[1749863504126,0.00586613,2554.5,2554.1,0.78266]
[1749863504327,0.00586613,2554.5,2554.0,3.99635613]
[1749863504527,0.78267,2554.1,2554.0,0.00586613]
[1749863513843,0.00586613,2554.5,2554.4,0.78258]
[1749863515442,0.78841613,2554.5,2554.4,0.78258]
[1749863515642,0.78261,2554.3,2554.2,1.43843]
[1749863516138,0.78261,2554.3,2554.2,0.6558]
[1749863517434,0.78264,2554.2,2554.1,0.6606]
[1749863519136,0.78264,2554.2,2554.0,0.00586613]
[1749863519137,0.78267,2554.1,2554.0,0.00586613]
[1749863519840,1.72870377,2554.1,2554.0,0.00586613]
[1749863521037,8.47570377,2554.1,2554.0,0.00586613]
[1749863521847,0.78283,2553.6,2553.5,0.6683]
[1749863522038,0.78286,2553.5,2553.4,3.2078]
[1749863522347,0.78286,2553.5,2553.4,4.4678]
[1749863522536,1.72889377,2553.5,2553.4,1.26]
[1749863522936,1.72889377,2553.5,2553.3,1.3515]
[1749863522937,0.78289,2553.4,2553.3,1.3515]
[1749863523133,1.72892377,2553.4,2553.3,2.13442]
[1749863523341,1.72892377,2553.4,2553.3,1.3515]
[1749863523941,1.72892377,2553.4,2553.3,2.13442]
[1749863524140,1.72892377,2553.4,2553.3,1.3515]
[1749863524343,0.94603377,2553.4,2553.3,1.3515]
[1749863524549,0.94603377,2553.4,2553.3,2.13442]
[1749863524943,0.78289,2553.5,2553.3,2.13442]
[1749863525142,0.94603377,2553.4,2553.3,2.13442]
[1749863527053,0.78289,2553.4,2553.3,1.3515]
[1749863527350,1.72892377,2553.4,2553.3,0.6832]
[1749863527743,0.94603377,2553.4,2553.3,1.46612]
[1749863528245,3.8432,2553.8,2553.4,0.78289]
[1749863528246,3.2078,2553.8,2553.4,0.78289]
[1749863528443,0.97141252,2553.7,2553.4,0.78289]
[1749863528749,3.2078,2553.8,2553.5,2.04396]
[1749863528750,0.97141167,2553.6,2553.5,2.04396]
[1749863528950,3.2078,2553.8,2553.7,0.7828]
[1749863529153,4.17924679,2553.8,2553.7,0.7828]
[1749863530041,0.78283,2553.6,2553.5,1.2611]
[1749863530246,0.78289,2553.4,2553.3,0.6832]
[1749863530455,1.75432022,2553.4,2553.3,1.46612]
[1749863532348,0.97143022,2553.4,2553.3,1.46612]
[1749863532944,1.75432022,2553.4,2553.3,1.46612]
[1749863533151,1.75432022,2553.4,2553.3,0.6832]
[1749863534052,1.75432022,2553.4,2553.3,1.46612]
[1749863536452,1.75429741,2553.4,2553.3,1.46612]
[1749863536653,1.75429697,2553.4,2553.3,1.46612]
[1749863537253,0.78289,2553.4,2553.3,1.46612]
[1749863537955,0.78294,2553.3,2553.2,0.78292]
[1749863538152,0.78294,2553.3,2553.2,0.78294]
[1749863538658,1.75464894,2553.3,2553.2,0.78294]
[1749863539360,0.78298,2553.2,2553.1,0.78297]
[1749863539558,1.75468894,2553.2,2553.1,0.78297]
[1749863540058,0.97170894,2553.2,2553.1,0.78297]
[1749863540249,1.75465894,2553.2,2553.1,0.78297]
[1749863540557,0.97170894,2553.2,2553.1,0.78297]
[1749863541253,0.78295,2553.2,2553.1,0.78297]
[1749863541557,0.78294,2553.3,2553.2,0.78293]
[1749863541857,1.75408406,2553.3,2553.2,0.78293]
[1749863542249,0.78298,2553.1,2553.0,1.3324]
[1749863542454,0.78297,2553.2,2553.0,2.1154]
[1749863542855,0.78298,2553.1,2553.0,1.3324]
[1749863543355,0.783,2553.1,2552.9,3.99084]
[1749863544054,3.2078,2553.5,2553.4,0.78289]
[1749863544264,4.17928243,2553.5,2553.0,2.6922]
[1749863544559,1.75437243,2553.4,2553.2,0.78293]
[1749863544757,0.78293,2553.3,2553.1,0.78297]
[1749863545354,0.78295,2553.2,2553.0,3.47519]
[1749863545554,7.4107,2553.7,2553.1,0.78298]
[1749863545755,2.24114341,2553.6,2553.1,0.78298]
[1749863545960,0.78297,2553.2,2553.0,3.4752]
[1749863546265,0.78294,2553.3,2553.1,0.78298]
[1749863547062,6.749,2553.6,2553.2,0.78295]
[1749863547351,0.7829,2553.4,2553.2,0.78295]
[1749863547557,0.7829,2553.4,2553.3,2.13022]
[1749863547751,0.97318855,2553.4,2553.0,1.3411]
[1749863547955,0.783,2553.1,2552.9,3.99082]
[1749863549257,0.78301,2553.0,2552.9,3.99082]
[1749863549456,0.78301,2553.0,2552.9,3.2078]
[1749863549661,0.78301,2553.0,2552.7,2.6324]
[1749863549662,0.78307,2552.8,2552.7,0.6463]
[1749863549867,1.75678486,2552.8,2552.7,0.6463]
[1749863550069,1.75678486,2552.8,2552.3,5.61979532]
[1749863550070,0.97371486,2552.8,2552.3,5.2202]
[1749863550366,0.78341,2551.8,2551.5,0.78345]
[1749863550563,1.95853,2551.7,2551.0,6.72876625]
[1749863550860,0.97247354,2551.6,2551.0,3.2078]
[1749863551160,3.2078,2551.8,2551.6,0.78344]
[1749863551371,3.2078,2551.8,2551.1,2.6206]
[1749863551372,3.2078,2551.8,2551.1,4.57953]
[1749863551662,0.00587774,2551.9,2551.4,3.2078]
[1749863551864,0.00587774,2551.9,2551.7,0.78339]
[1749863552053,0.00587774,2551.9,2551.8,2.09328]
[1749863552257,0.00587774,2551.9,2551.8,1.3099]
[1749863552458,0.78922774,2551.9,2551.8,1.3099]
[1749863552863,0.78339,2551.8,2551.3,3.2078]
[1749863553065,0.78339,2551.8,2551.6,0.78342]
[1749863553263,3.2078,2551.8,2551.2,0.78355]
[1749863553562,0.78352,2551.4,2551.1,2.73908]
[1749863553768,0.78352,2551.4,2551.2,1.2444]
[1749863554164,5.1796,2551.8,2551.2,2.02796]
[1749863554567,0.78352,2551.4,2551.2,1.2444]
[1749863554761,0.78349,2551.5,2551.2,2.02795]
[1749863555074,0.78344,2551.6,2551.2,1.2444]
[1749863555273,0.78344,2551.6,2551.4,0.78349]
[1749863555473,0.78344,2551.6,2551.3,2.02791]
[1749863555673,0.78345,2551.6,2551.4,0.7835]
[1749863555875,0.78345,2551.6,2551.4,2.02788]
[1749863556473,0.78342,2551.7,2551.4,2.02788]
[1749863556774,0.00587774,2551.9,2551.5,3.2078]
[1749863556974,0.00587774,2551.9,2551.8,0.78338]
[1749863557172,0.00587774,2551.9,2551.7,0.78341]
[1749863557382,0.78922774,2551.9,2551.7,2.11291]
[1749863557677,0.78922774,2551.9,2551.8,0.78338]
[1749863557872,0.78922774,2551.9,2551.7,2.11289]
[1749863558081,0.78922774,2551.9,2551.6,0.6276]
[1749863558082,0.00587774,2551.9,2551.6,0.6276]
[1749863558288,0.78924774,2551.9,2551.7,0.78339]
[1749863558576,0.00587774,2551.9,2551.6,0.6276]
[1749863558780,0.78341,2551.7,2551.6,0.6276]
[1749863559571,0.78341,2551.7,2551.5,0.78346]
[1749863559572,0.78341,2551.7,2551.5,0.78345]
[1749863560281,3.2078,2551.8,2551.7,0.7834]
[1749863560480,0.00587774,2551.9,2551.7,0.7834]
[1749863560777,0.00587774,2551.9,2551.8,0.78337]
[1749863560980,0.00587774,2551.9,2551.5,3.2078]
[1749863561174,0.00587774,2551.9,2551.8,0.78337]
[1749863561780,0.00587774,2551.9,2551.7,0.78338]
[1749863561981,0.78923774,2551.9,2551.8,0.78337]
[1749863562171,0.00587774,2551.9,2551.8,0.78337]
[1749863563485,3.2078,2552.1,2552.0,0.78331]
[1749863563683,3.99108,2552.1,2552.0,0.78331]
[1749863566087,3.99108,2552.1,2551.8,1.92207774]
[1749863566088,3.2078,2552.1,2551.8,1.92207774]
[1749863566482,3.2078,2552.1,2552.0,0.78331]
[1749863566785,3.99108,2552.1,2552.0,0.78331]
[1749863567889,3.2078,2552.1,2552.0,0.78331]
[1749863568089,3.99108,2552.1,2552.0,0.78331]
[1749863568986,0.00587774,2552.3,2552.2,0.78325]
[1749863569575,0.00587774,2552.3,2552.2,2.02725]
[1749863575184,0.00587774,2552.3,2552.2,8.65025]
[1749863575985,3.2078,2552.7,2552.6,0.78312]
[1749863576186,7.40603,2553.0,2552.9,0.78303]
[1749863576594,0.78305,2552.9,2552.8,0.78305]
[1749863577592,3.21367774,2553.1,2552.9,0.78301]
[1749863577593,0.78301,2553.0,2552.9,0.78301]
[1749863577784,3.21367774,2553.1,2552.6,1.356]
[1749863577990,0.78306,2552.9,2552.6,1.356]
[1749863578189,0.78308,2552.8,2552.6,1.356]
[1749863578385,0.78308,2552.8,2552.7,0.78309]
[1749863578691,0.78306,2552.9,2552.8,0.78306]
[1749863579393,0.78302,2553.0,2552.9,0.78303]
[1749863579589,0.9632767,2553.0,2552.9,0.78303]
[1749863579893,3.99665774,2553.1,2553.0,0.78301]
[1749863580086,4.95993675,2553.1,2553.0,0.78301]
[1749863580495,0.78303,2553.0,2552.9,0.78303]
[1749863580689,0.78303,2553.0,2552.9,2.12233]
[1749863580887,0.00587774,2553.1,2553.0,0.783]
[1749863581093,0.00587774,2553.1,2553.0,2.1126]
[1749863581295,0.00587774,2553.1,2552.9,3.8546]
[1749863581296,0.00587774,2553.1,2552.9,1.42983]
[1749863581793,0.78301,2553.0,2552.9,1.42983]
[1749863582491,0.78305,2552.9,2552.4,1.95798]
[1749863582683,0.00587774,2553.1,2552.8,0.78304]
[1749863582887,0.78304,2552.9,2552.8,0.78304]
[1749863583195,0.78303,2553.0,2552.9,0.78304]
[1749863584499,0.78304,2552.9,2552.8,0.78305]
[1749863584793,0.78886774,2553.1,2553.0,0.78301]
[1749863585397,0.00587774,2553.1,2552.7,1.3089]
[1749863585598,0.78305,2552.9,2552.8,0.78305]
[1749863586298,0.78302,2553.0,2552.9,0.78302]
[1749863586599,0.78885774,2553.1,2553.0,0.78301]
[1749863587500,0.78301,2553.0,2552.7,1.3089]
[1749863587803,0.78886774,2553.1,2552.9,0.78302]
[1749863588395,0.78887774,2553.1,2553.0,0.783]
[1749863588594,0.78302,2553.0,2552.9,0.78301]
[1749863589301,0.78886774,2553.1,2553.0,0.78301]
[1749863590095,0.00587774,2553.1,2553.0,0.78301]
[1749863590699,0.78885774,2553.1,2553.0,0.78301]
[1749863590900,0.00587774,2553.1,2553.0,0.78301]
[1749863597607,1.75173646,2553.1,2553.0,0.78301]
[1749863598104,0.96876646,2553.1,2553.0,0.78301]
[1749863599500,1.75174646,2553.1,2553.0,0.78301]
[1749863599909,0.96876646,2553.1,2553.0,0.78301]
[1749863602010,0.96876646,2553.1,2553.0,1.46681]
[1749863602204,0.96876646,2553.1,2553.0,2.74711]
[1749863603419,0.00587774,2553.1,2553.0,2.74711]
[1749863604906,0.97105144,2553.1,2553.0,2.74711]
[1749863612824,0.97105144,2553.1,2553.0,0.78301]
[1749863613020,1.75402144,2553.1,2553.0,0.78301]
[1749863613220,0.78301,2553.0,2552.9,3.99081]
[1749863613527,2.3950837,2553.0,2552.9,3.2078]
[1749863613827,0.78313,2552.6,2552.5,3.2078]
[1749863614023,1.7483037,2552.6,2552.5,3.2078]
[1749863615328,1.7483037,2552.6,2552.5,3.99096]
[1749863615534,0.78313,2552.6,2552.5,3.2078]
[1749863615734,1.74617799,2552.6,2552.5,3.2078]
[1749863617029,0.78316,2552.5,2552.4,0.78318]
[1749863617226,0.96304799,2552.5,2552.4,0.78318]
[1749863621138,3.2078,2552.7,2552.6,0.78313]
[1749863621342,4.17004225,2552.7,2552.6,0.78313]
[1749863621545,4.17004893,2552.7,2552.6,0.78313]
[1749863624441,0.6469,2553.0,2552.9,0.78304]
[1749863624744,1.60944649,2553.0,2552.9,0.78304]
[1749863625230,2.39245649,2553.0,2552.9,0.78304]
[1749863626737,1.60944649,2553.0,2552.9,0.78304]
[1749863626948,0.96254649,2553.0,2552.9,0.78304]
[1749863628548,0.00587774,2553.1,2553.0,0.78301]
[1749863628852,0.96847131,2553.1,2553.0,0.78301]
[1749863629647,0.00587774,2553.1,2553.0,0.78301]
[1749863630645,0.00587774,2553.1,2552.8,0.6724]
[1749863630845,0.78304,2552.9,2552.8,0.78305]
[1749863631046,0.6649,2553.0,2552.5,3.8802]
[1749863631350,0.7831,2552.7,2552.6,0.78312]
[1749863632240,1.45768,2552.8,2552.7,0.7831]
[1749863632451,1.63721948,2552.8,2552.7,0.7831]
[1749863632644,0.96261948,2552.8,2552.7,0.7831]
[1749863633042,1.44793,2553.0,2552.5,3.8802]
[1749863633248,1.7457377,2552.9,2552.6,1.2481]
[1749863633546,0.78304,2552.9,2552.6,1.2481]
[1749863633746,1.44792,2553.0,2552.9,0.78304]
[1749863633942,0.78304,2552.9,2552.8,0.78304]
[1749863634150,1.74573127,2552.9,2552.8,0.78307]
[1749863634350,0.96269127,2552.9,2552.8,0.78307]
[1749863635752,1.44792,2553.0,2552.9,0.78304]
[1749863635951,1.74605311,2553.0,2552.9,0.78304]
[1749863636555,0.96304311,2553.0,2552.9,0.78304]
[1749863638253,0.96304311,2553.0,2552.9,1.43994]
[1749863638448,0.00587774,2553.1,2553.0,0.78301]
[1749863638646,0.96927719,2553.1,2553.0,0.78301]
[1749863638853,0.96927719,2553.1,2553.0,2.11811]
[1749863639159,0.96920814,2553.1,2553.0,2.11811]
[1749863639852,0.96921483,2553.1,2553.0,2.11811]
[1749863640259,1.75219483,2553.1,2553.0,1.3351]
[1749863640864,0.96921483,2553.1,2553.0,2.11811]
[1749863642458,0.00587774,2553.1,2553.0,2.11811]
[1749863650763,0.00587774,2553.1,2553.0,0.78301]
[1749863652266,0.00587774,2553.1,2553.0,2.08571]
[1749863655165,0.96793776,2553.1,2553.0,2.08571]
[1749863661267,3.2078,2553.4,2553.3,0.78291]
[1749863663273,3.2078,2553.4,2553.3,1.43081]
[1749863663574,0.00587774,2553.6,2553.5,0.78285]
[1749863664570,0.78869774,2553.6,2553.5,0.78285]
[1749863665071,0.00587774,2553.6,2553.5,0.78285]
[1749863665669,3.2078,2553.7,2553.6,0.78282]
[1749863666372,1.3144,2554.1,2553.6,3.2078]
[1749863666575,0.78273,2553.9,2553.8,0.78274]
[1749863666975,1.32027774,2554.1,2553.9,0.78273]
[1749863666976,0.78272,2554.0,2553.9,0.78273]
[1749863667191,2.10295774,2554.1,2554.0,0.7827]
[1749863667472,0.7827,2554.0,2553.9,0.78271]
[1749863667866,1.32027774,2554.1,2554.0,0.7827]
[1749863668472,0.00587774,2554.1,2554.0,0.7827]
[1749863669176,1.3088,2554.4,2554.3,0.78261]
[1749863669379,2.09138,2554.4,2554.3,0.78261]
[1749863670879,1.3088,2554.4,2553.9,5.78686]
[1749863671074,2.09139,2554.4,2554.3,0.78261]
[1749863671576,0.78262,2554.3,2554.2,0.78262]
[1749863671974,2.0914,2554.4,2554.3,0.78261]
[1749863672178,2.0914,2554.4,2554.1,0.6439]
[1749863672474,1.3088,2554.4,2554.1,0.6439]
[1749863672675,0.78261,2554.3,2554.2,0.78264]
[1749863673274,2.09138,2554.4,2554.3,0.78261]
[1749863673580,3.04406236,2554.4,2554.3,0.78261]
[1749863674578,2.09139,2554.4,2554.3,0.78261]
[1749863675083,1.3088,2554.4,2554.3,0.78261]
[1749863675274,0.6384,2554.4,2554.3,0.78261]
[1749863676084,0.78255,2554.5,2554.4,0.78258]
[1749863676271,0.00587774,2554.6,2554.2,4.4641]
[1749863676468,0.78256,2554.5,2554.4,0.78255]
[1749863676880,0.78839774,2554.6,2554.5,0.78255]
[1749863677077,0.95772867,2554.6,2554.5,0.78255]
[1749863677279,0.00587774,2554.6,2554.5,0.78255]
[1749863677576,9.7398,2555.2,2554.9,0.78241]
[1749863677780,0.78243,2554.9,2554.8,0.78244]
[1749863678174,0.78242,2555.0,2554.9,0.78242]
[1749863678375,0.78242,2554.9,2554.8,3.99023]
[1749863678578,0.78242,2555.0,2554.9,0.78242]
[1749863678880,0.78614428,2555.1,2555.0,0.78239]
[1749863679272,0.00376428,2555.1,2555.0,0.78239]
[1749863680479,0.78612428,2555.1,2555.0,0.78239]
[1749863680679,0.00376428,2555.1,2555.0,0.78239]
[1749863681380,0.78242,2554.9,2554.8,3.2078]
[1749863681584,0.78248,2554.7,2554.6,0.00587774]
[1749863683781,6.73265497,2554.7,2554.6,0.00587774]
[1749863685675,6.73265497,2554.7,2554.6,7.74e-06]
[1749863687884,0.78276,2553.8,2553.7,3.2078]
[1749863688686,3.2078,2554.6,2554.1,0.78265]
[1749863688878,3.2078,2554.6,2554.2,1.3321]
[1749863688879,0.78261,2554.3,2554.2,1.3321]
[1749863689080,0.7826,2554.4,2554.2,3.46551]
[1749863689283,0.7826,2554.4,2554.3,1.3508]
[1749863690686,1.734256,2554.4,2554.3,1.3508]
[1749863696387,0.951656,2554.4,2554.1,0.00587774]
[1749863696591,0.78264,2554.2,2554.1,0.00587774]
[1749863696785,1.734296,2554.2,2554.1,0.00587774]
[1749863697789,0.951656,2554.2,2554.1,0.78854774]
[1749863697987,0.95331051,2554.2,2554.1,0.78854774]
[1749863698390,0.95331051,2554.2,2554.1,2.03394774]
[1749863702295,1.73595051,2554.2,2554.1,0.00587774]
[1749863702592,0.78276,2553.8,2553.7,3.2078]
[1749863702901,9.7328,2553.9,2553.4,3.2078]
[1749863703091,0.95331051,2553.8,2553.4,3.2078]
[1749863703299,9.7328,2553.9,2553.4,3.2078]
[1749863703300,0.78285,2553.5,2553.4,3.2078]
[1749863703687,1.73616051,2553.5,2553.4,3.2078]
[1749863704095,1.73616051,2553.5,2553.4,3.99068]
[1749863704697,0.95331051,2553.5,2553.4,3.99068]
[1749863704891,0.00587774,2553.7,2553.4,3.2078]
[1749863705098,0.00587774,2553.7,2553.6,0.78282]
[1749863705290,0.00587774,2553.7,2553.6,7.30782]
[1749863705591,0.00587774,2553.7,2553.6,12.95652]
[1749863705784,0.00587774,2553.7,2553.6,1.43152]
[1749863705989,0.78285,2553.5,2553.4,3.2078]
[1749863706189,0.00587774,2553.7,2553.4,3.2078]
[1749863706190,0.78284,2553.6,2553.5,0.78285]
[1749863706389,0.78284,2553.6,2553.4,3.2078]
[1749863706893,0.78868774,2553.7,2553.5,0.78283]
[1749863707295,0.78868774,2553.7,2553.6,0.78282]
[1749863708093,0.00587774,2553.7,2553.6,0.78282]
[1749863709492,0.00587774,2553.7,2553.6,7.30882]
[1749863709692,0.78268,2554.1,2554.0,0.7827]
[1749863709898,1.73402944,2554.1,2554.0,0.7827]
[1749863710394,0.95134944,2554.1,2554.0,0.7827]
[1749863710699,1.73401944,2554.1,2554.0,0.7827]
[1749863710899,0.95134944,2554.1,2554.0,0.7827]
[1749863712098,0.78267,2554.1,2554.0,0.7827]
[1749863712301,1.7351749,2554.1,2554.0,0.7827]
[1749863712998,0.9525049,2554.1,2553.9,1.278]
[1749863713200,0.78269,2554.1,2554.0,0.7827]
[1749863713400,1.73531495,2554.1,2554.0,0.7827]
[1749863714808,0.95262495,2554.1,2554.0,3.9905]
[1749863715008,0.00587774,2554.3,2554.2,0.78264]